Cogmind - Beta 15 @@@ ROGUE MODE // 2025.10.17 @ 00:27:00 Player: Malady Result: Destroyed self with Missile Launcher Performance ------------- Evolutions (2) 1000 Regions Visited (3) 600 Robots Destroyed (34) 170 Value Destroyed (1026) 1026 Prototype IDs (2) 40 Alien Tech Used (0) 0 Bonus (271) 271 TOTAL SCORE: 3107 Bonus ------- Pacifist 200 High Alert Combat Kills 71 Cogmind --------- Core Integrity 0/550 Matter 261/300 Energy 83/100 System Corruption 2% Temperature Cool (27) Movement Core (100) Ox1 Location -8/Materials Parts ------- > --- POWER (1) -------- (None) > --- PROPULSION (4) --- (None) > --- UTILITY (4) ------ Visual Processing Unit > --- WEAPON (2) ------- Missile Launcher > --- INVENTORY (5) ---- Micro Nuclear Core Medium Matter Pod (100) Particle Charger Pulse Rifle Light Assault Rifle Peak State ------------ > --- POWER ------------ Light Nuclear Core > --- PROPULSION ------- Improved Treads Medium Treads Medium Treads Medium Treads > --- UTILITY ---------- Huge Storage Unit Targeting Computer Targeting Computer Targeting Computer > --- WEAPON ----------- Heavy Laser Autogun > --- INVENTORY -------- Light Nuclear Core Micro Nuclear Core Micro Nuclear Core Micro Nuclear Core Micro Nuclear Core Light Treads Improved Heat Sink Improved Heat Sink Medium Matter Pod Terrain Scanner Terrain Scanner Terrain Scan Processor Targeting Computer Targeting Computer Particle Charger ECM Suite Medium Armor Plating Shield Generator Particle Gun Pulse Rifle Light Assault Rifle Gauss Rifle Gauss Rifle Gauss Rifle Gauss Rifle [Rating: 33] Favorites ----------- Power Ion Engine Engine Ion Engine Power Core Light Nuclear Core Propulsion Aluminum Leg Treads Medium Treads Leg Aluminum Leg Utility Small Storage Unit Storage Small Storage Unit Processor Targeting Computer Weapon Light Assault Rifle Energy Gun EM Pulse Gun Ballistic Gun Light Assault Rifle Launcher Missile Launcher Build | -11 -10 -10 -8 ------- Run | Yrd Mat Sub Mat Slots Evolved 4 | . . . 4 Power . | . . . . Propulsion 2 | . . . 2 Utility 2 | . . . 2 Weapon . | . . . . Parts Attached 26 | 6 3 . 17 Power 4 | 1 1 . 2 Engine 2 | 1 1 . . Core 2 | . . . 2 Reactor . | . . . . Propulsion 8 | 2 . . 6 Treads 6 | . . . 6 Leg 2 | 2 . . . Wheel . | . . . . Hover . | . . . . Flight . | . . . . Utility 6 | 1 2 . 3 Device . | . . . . Storage 2 | 1 1 . . Processor 4 | . 1 . 3 Hackware . | . . . . Protection . | . . . . Artifact . | . . . . Weapon 8 | 2 . . 6 Energy Gun 2 | 1 . . 1 Energy Cannon . | . . . . Ballistic Gun 5 | 1 . . 4 Ballistic Cannon . | . . . . Launcher 1 | . . . 1 Special Weapon . | . . . . Impact Weapon . | . . . . Slashing Weapon . | . . . . Piercing Weapon . | . . . . Special Melee Weapon . | . . . . Unidentified Prototypes . | . . . . Parts Lost 15 | . . . 15 Power 2 | . . . 2 Propulsion 6 | . . . 6 Utility 3 | . . . 3 Weapon 4 | . . . 4 Highest Loss Streak 8 | . . . 8 To Critical Strikes . | . . . . Average Backups 7 | 3 6 8 19 Power 1 | 1 1 1 4 Propulsion 1 | 1 . . . Utility 2 | . 3 5 9 Weapon 2 | . 1 2 5 Tool/Special . | . . . . Unused Backups 27 | . 2 . 25 Power 5 | . . . 5 Propulsion 3 | . 2 . 1 Utility 14 | . . . 14 Weapon 5 | . . . 5 Tool/Special . | . . . . Average Slot Usage (%) 90 | . 94 100 86 Engine 7 | . 11 14 5 Core 2 | . . . 3 Treads 11 | . . . 21 Leg 15 | . 28 28 4 Storage 11 | . 14 14 8 Processor 19 | . 11 14 25 Energy Gun 10 | . 14 14 8 Ballistic Gun 11 | . 14 14 8 Peak Build Rating 33 | 6 7 7 33 Average Rating 9 | 5 6 7 22 On Entrance 5 | . 6 7 7 Naked Turns . | . . . . Heaviest Build 93 | 13 88 88 93 Greatest Support 112 | 20 20 20 112 Greatest Overweight (x) 26 | . 4 4 26 Average Overweight (x) . | . 2 4 1 Largest Inventory Capacity 25 | 8 25 25 25 Average Capacity 13 | 7 21 25 24 Most Carried 25 | 5 9 8 25 Average Carried 7 | 3 6 8 20 Final Capacity 25 | 8 25 25 5 Final Carried 8 | 4 8 8 5 Class Distribution -------------------- 97% | Mutant Dominant Class ---------------- Mutant | -10/Materials Mutant | -10/Subcaves Mutant | -8/Materials Resources | -11 -10 -10 -8 ----------- Run | Yrd Mat Sub Mat Matter Collected 714 | 198 137 . 379 Remotely . | . . . . Salvage Created 1085 | . . . 1085 Parts 62 | . . . 62 Haulers Intercepted . | . . . . Recyclers Shooed 2 | . . . 2 Parts Field Recycled . | . . . . Retrieved Matter . | . . . . Parts Self-Destructed 6 | . . 6 . Prevented . | . . . . Kills | -11 -10 -10 -8 ------- Run | Yrd Mat Sub Mat Combat Hostiles Destroyed 26 | . . . 26 Guns 22 | . . . 22 AOE 4 | . . . 4 Classes Destroyed 7 | . . . 7 Worker 3 | . . . 3 Builder 2 | . . . 2 Watcher 3 | . . . 3 Swarmer 11 | . . . 11 Grunt 13 | . . . 13 Brawler 1 | . . . 1 Sentry 1 | . . . 1 Best Kill Streak 13 | . . . 13 Combat Bots Only 7 | . . . 7 Max Kills in Single Turn 3 | . . . 3 Gunslinging 1 | . . . 1 Exploded 2 | . . . 2 Melee . | . . . . Uniques/NPCs Destroyed . | . . . . Combat | -11 -10 -10 -8 -------- Run | Yrd Mat Sub Mat Hostile Shots Fired 225 | . . . 225 Missed 55 | . . . 55 Hits 170 | . . . 170 Melee 2 | . . . 2 Projectile 168 | . . . 168 Critical Strikes 8 | . . . 8 Damage Taken 2505 | . . . 2505 Core 552 | . . . 552 Absorbed by Shields . | . . . . Core Remaining (%) 100 | 100 . 100 . Volleys Fired 73 | . 1 . 72 Largest 2 | . 2 . 2 Hottest 92 | . 60 . 92 Shots Fired 139 | . 2 . 137 Gun 138 | . 2 . 136 Cannon . | . . . . Launcher 1 | . . . 1 Special . | . . . . Kinetic 79 | . 1 . 78 Thermal 31 | . . . 31 Explosive 1 | . . . 1 Electromagnetic 28 | . 1 . 27 Robot Hit Streak 18 | . . . 18 Robot Miss Streak 3 | . . . 3 Penetration Max 1 | . . . 1 Secondary Targets 8 | . . . 8 Max Gunslinging Chain 1 | . . . 1 Shots Hit Robots 102 | . . . 102 Core Hits 55 | . . . 55 Critical Kills . | . . . . Critical Parts Destroyed . | . . . . Critical Strikes 3 | . . . 3 Burn 2 | . . . 2 Corrupt 1 | . . . 1 Melee Attacks . | . . . . Impact . | . . . . Slashing . | . . . . Piercing . | . . . . Sneak Attacks . | . . . . Combat Hostiles . | . . . . Follow-up Attacks . | . . . . Damage Inflicted 2179 | . . . 2179 Guns 1554 | . . . 1554 Cannons . | . . . . Explosions 625 | . . . 625 Melee . | . . . . Ramming . | . . . . Kinetic 847 | . . . 847 Thermal 780 | . . . 780 Explosive 241 | . . . 241 Electromagnetic 311 | . . . 311 Impact . | . . . . Slashing . | . . . . Piercing . | . . . . Highest Corruption 2 | . . . 2 Average Corruption 2 | . . . 2 Corruption Purged . | . . . . Corruption Blocked . | . . . . Effects 1 | . . . 1 Data Loss (minor) 1 | . . . 1 Overload Shots . | . . . . Overflow Damage 17 | . . . 17 Projectiles . | . . . . Explosions 17 | . . . 17 Melee . | . . . . Knockbacks . | . . . . Impact . | . . . . Kinetic . | . . . . Secondary . | . . . . Self-Inflicted Damage 238 | . . . 238 Shots 5 | . . . 5 Rammed . | . . . . Targets Rammed . | . . . . Kicked . | . . . . Crushed . | . . . . Highest Temperature 364 | . 20 . 364 Average Temperature 120 | . 10 . 122 Received Heat Transfer 1071 | . . . 1071 Effects 1 | . . . 1 Energy Bleed 1 | . . . 1 Siege Activations . | . . . . Martial Activations . | . . . . Shielding Activations . | . . . . Robots Disrupted . | . . . . Combat Hostiles . | . . . . Robots Corrupted 1 | . . . 1 Combat Hostiles . | . . . . Parts Fried 3 | . . . 3 Impact Corruptions . | . . . . Robots Melted . | . . . . Combat Hostiles . | . . . . Parts Melted . | . . . . Heat Transferred 1425 | . . . 1425 Parts Sabotaged . | . . . . Parts Stolen . | . . . . Parts Stripped . | . . . . Power Chain Reactions 3 | . . . 3 Alert | -11 -10 -10 -8 ------- Run | Yrd Mat Sub Mat Maximum Alert Level 2 | . . . 2 Low Security (%) 93 | 100 100 . 65 Level 1 2 | . . . 16 Level 2 3 | . . . 18 Level 3 . | . . . . Level 4 . | . . . . Level 5 . | . . . . High Security . | . . . . Max Security . | . . . . Peak Influence 683 | . 25 . 683 Initial . | . . . . Average 34 | . 1 . 184 Influence Increases 1065 | . 30 . 1035 Destroy 0b10 Robot/C 520 | . . . 520 Destroy 0b10 Robot/NC 40 | . . . 40 Destroy Leader 86 | . . . 86 Successful Hack 30 | . 30 . . Disable Machine 45 | . . . 45 Anti-Garrison Action 150 | . . . 150 Destroy Structure 44 | . . . 44 Partial Spotted 15 | . . . 15 Lose Combat Pursuer 135 | . . . 135 Influence Decreases 420 | . 30 . 390 Time Decay 270 | . 30 . 240 Lost Part 150 | . . . 150 Squads Dispatched 7 | . 1 . 6 Investigation 1 | . . . 1 Extermination . | . . . . Reinforcement 2 | . 1 . 1 Assault 2 | . . . 2 Garrison 2 | . . . 2 Intercept . | . . . . Searches Triggered . | . . . . Construction Impeded . | . . . . Haulers Reinforced . | . . . . Active Scanning Responses . | . . . . Cargo Convoy Interrupts . | . . . . Stealth | -11 -10 -10 -8 --------- Run | Yrd Mat Sub Mat Distress Signals 3 | . 1 . 2 Communications Jammed . | . . . . Distress Signals . | . . . . Times Spotted 50 | . 1 . 49 Peak Tracking Total 8 | . 1 . 8 Tactical Retreats 4 | . . . 4 Traps | -11 -10 -10 -8 ------- Run | Yrd Mat Sub Mat Traps Triggered . | . . . . Indirectly . | . . . . Trap Hack Attempts . | . . . . Triggered . | . . . . Disarmed . | . . . . Reprogrammed . | . . . . Reused . | . . . . Traps Extracted . | . . . . Installed . | . . . . Triggered . | . . . . Machines | -11 -10 -10 -8 ---------- Run | Yrd Mat Sub Mat Machines Disabled 4 | . . . 4 Max in Single Turn 1 | . . . 1 Garrison Access 1 | . . . 1 Machines Repaired . | . . . . Machines Dismantled . | . . . . Machines Sabotaged . | . . . . Overloaded Fab Kills . | . . . . Hacking | -11 -10 -10 -8 --------- Run | Yrd Mat Sub Mat Machines Accessed 5 | . 4 . 1 Terminals 5 | . 4 . 1 Fabricators . | . . . . Repair Stations . | . . . . Recycling Units . | . . . . Scanalyzers . | . . . . Garrison Access . | . . . . Total Hacks 21 | . 19 . 2 Successful 12 | . 11 . 1 Failed 9 | . 8 . 1 Catastrophic 1 | . 1 . . Database Lockouts . | . . . . Manual . | . . . . Terminals 21 | . 19 . 2 Fabricators . | . . . . Repair Stations . | . . . . Recycling Units . | . . . . Scanalyzers . | . . . . Garrison Access . | . . . . Terminal Hacks 12 | . 11 . 1 Record 7 | . 6 . 1 Prototype ID Bank 1 | . 1 . . Branch Access Points 1 | . 1 . . Zone Layout 3 | . 3 . . Fabricator Hacks . | . . . . Repair Station Hacks . | . . . . Recycling Unit Hacks . | . . . . Scanalyzer . | . . . . Garrison Access Hacks . | . . . . Unauthorized Hacks . | . . . . Terminals . | . . . . Fabricators . | . . . . Repair Stations . | . . . . Recycling Units . | . . . . Scanalyzers . | . . . . Garrison Access . | . . . . Data Cores Recovered . | . . . . Used . | . . . . Hacking Detections 5 | . 4 . 1 Full Trace Events . | . . . . Feedback Events . | . . . . Feedback Blocked . | . . . . Robot Schematics Acquired . | . . . . Robots Built . | . . . . Authchips . | . . . . Time . | . . . . Total Robot Build Rating . | . . . . Part Schematics Acquired . | . . . . Parts Built . | . . . . Authchips . | . . . . Time . | . . . . Total Part Build Rating . | . . . . Parts Repaired . | . . . . Time . | . . . . Parts Recycled . | . . . . Recycled Matter . | . . . . Retrieved Matter . | . . . . Retrieved Components . | . . . . Parts Scanalyzed . | . . . . Part Schematics Acquired . | . . . . Parts Damaged . | . . . . Bothacking | -11 -10 -10 -8 ------------ Run | Yrd Mat Sub Mat Used RIF Installer . | . . . . Robots Hacked . | . . . . Non-combat . | . . . . Combat . | . . . . Robot Hacks Applied . | . . . . Relay Couplers Released 1 | . . . 1 Machine Destruction 1 | . . . 1 Fabnet Peak Effective % . | . . . . Robots Rewired . | . . . . Allies Hacked . | . . . . Hacks Repelled . | . . . . Allies | -11 -10 -10 -8 -------- Run | Yrd Mat Sub Mat Total Allies . | . . . . Largest Group . | . . . . Highest-Rated Group . | . . . . Highest-Rated Ally . | . . . . Total Orders . | . . . . Ally Attacks . | . . . . Total Damage . | . . . . Kills . | . . . . Allies Corrupted . | . . . . Allies Melted . | . . . . Intel | -11 -10 -10 -8 ------- Run | Yrd Mat Sub Mat Active Infowar (turns) 150 | . . . 150 Optics 150 | . . . 150 Robot Analysis Total . | . . . . Derelict Logs Recovered . | . . . . Drone Launches . | . . . . Drone Recoveries . | . . . . Exploration | -11 -10 -10 -8 ------------- Run | Yrd Mat Sub Mat Turns Passed 5341 | 3580 692 89 980 Spaces Moved 1345 | 806 222 22 295 Core 19 | 16 . . 3 Treads 232 | . . . 232 Legs 1094 | 790 222 22 60 Wheels . | . . . . Hover . | . . . . Flight . | . . . . Fastest Speed 50 | 50 120 400 50 Average Speed 172 | 118 260 400 237 Slowest Speed 1350 | 120 400 400 1350 Overloaded Moves . | . . . . Propulsion Burnouts . | . . . . Robots Hopped . | . . . . Potential Cave-ins . | . . . . Cave-ins Triggered . | . . . . Exploration Rate (%) 29 | 68 22 3 26 Regions Visited 3 Branch Regions 1 Pre-discovered Areas . | . . . . Known Exits Taken . | . . . . Unknown Exits Taken 3 | 1 1 1 . Scrap Searched . | . . . . Spaces Dug . | . . . . Terrain Destroyed 46 | . . . 46 Melee . | . . . . Projectile . | . . . . AOE 46 | . . . 46 Terrain Rammed . | . . . . Walls Destroyed . | . . . . Machines Disabled . | . . . . Actions | -11 -10 -10 -8 --------- Run | Yrd Mat Sub Mat Total 4246 | 3429 340 26 451 Wait 2735 | 2610 99 5 21 Move 1342 | 805 221 21 295 Hop . | . . . . Pick Up 46 | 8 8 . 30 Fast Attach 6 | 2 . . 4 Attach 17 | 4 4 . 9 Detach 5 | . 3 . 2 Swap 9 | . 1 . 8 Drop 13 | . 3 . 10 Fire 73 | . 1 . 72 Melee . | . . . . Ram . | . . . . Kick . | . . . . Crush . | . . . . Escape Stasis . | . . . . Rewire . | . . . . Trap . | . . . . Miscellaneous . | . . . . Route ------- -11/Scrapyard -10/Materials (discovered 3 exits: Min x2 / [*Sub]) -10/Subcaves -8/Materials History --------- Turn | Location | Event 16 | -11/Scrapyard | Discovered new exit (range 15) 3581 | -11/Scrapyard | Entered Materials 3582 | -10/Materials | Build established: Mutant 3785 | -10/Materials | Identified exit to Mines 4081 | -10/Materials | Derelicts attacked the area 4237 | -10/Materials | Discovered new exit (range 10) 4273 | -10/Materials | Entered Subcaves 4274 | -10/Subcaves | Approached by a straggling Scientist 4302 | -10/Subcaves | Discovered new exit (range 16) 4362 | -10/Subcaves | Entered Materials 4362 | -8/Materials | Evolved 4 slots: Propulsion x2, Utility x2 5109 | -8/Materials | Garrison activated, responded to threat 5157 | -8/Materials | Destroyed 7 combat bots 5192 | -8/Materials | Lost 4 parts (1p2n1u) 5331 | -8/Materials | Core integrity fell below 50% 5339 | -8/Materials | Core integrity fell below 20% 5342 | -8/Materials | Destroyed self with Missile Launcher Last Messages --------------- K-01 Serf collects debris. System corrupted: Component data lost. Targeting Computer destroyed. M-13 Machinist repairs G-47 Trooper. G-47 Trooper destroyed. Switching to secondary target: B-36 Bruiser. B-36 Bruiser destroyed. M-13 Machinist repairs G-47 Trooper. K-01 Serf collects debris. Atomic Centrifuge disabled. Gauss Rifle destroyed. Lgt. Treads destroyed. K-01 Serf collects debris. Gauss Rifle destroyed. Acquired 54 matter. K-01 Serf collects debris. Critical hit (Burn: +37). K-01 Serf collects debris. Dropped Huge Storage Unit. Acquired Missile Launcher. Map ----- +----------------------------------------------------+ | ?# #??????????????????????????????????? | | ?# #??????????????????????????????????? | | ?####+###+####???????? ??????????????????????? | | ???# #???????? ??????????????????????? | | ???# ##### #???????? #?????????????????????? | | ???# ?????# #???????? #?????????????????????? | | ???# ??????# #???????? #?????????????????????? | | ?????????###+#######?? #?????????????????????? | | ?????????# % #?? #?????????????????????? | | ?????????# % ### #?????????????????????? | | ?????????# # #?????????????????????? | | ?????????# # #?????????????????????? | | ?????????# % = # #?????????????????????? | | ?????????# %%! # ###########???????????? | | ?????????# =% # # #???????????? | | ?????????# # # #???????????? | | ?#???????#####/##### #g""" #???????????? | | ?# "#####%%%^= =# """ #???????????? | | ?# "%/ *m! %m% "" """ #???????????? | | ?# ##### !^ #g=! R" #???????????? | | ?????????#"" !%= k^ %=g! """ #???????????? | | ?????????#"=%%!* # =** #???????????? | | ?????????#""" """" # g ########??????????? | | ?????????#### """" #%!=!!! """" ?????????? | | ?????????? """" ! g[k !""S"" ?????????? | | ???????? [k*@i]! "" "" ?????????? | | ??????? [#*]]][ #????????? | | ??????################ #*]] ! #????????? | | ?????????????????????#+######+#######????????? | | ?????????????????????????????????????????????? | | ?????????????????????????????????????????????? | | ?????????????????????????????????????????????? | | ?????????????????????????????????????????????? | | ?????????????????????????????????????????????? | | ?????????????????????????????????????????????? | | ?????????????????????????????????????????????? | | ?????????????????????????????????????????????? | | ?????????????????????????????????????????????? | | ?????????????????????????????????????????????? | | ?????????????????????????????????????????????? | | ?????????????????????????????????????????????? | | ?????????????????????????????????????????????? | | ?????????????????????????????????????????????? | | ?????????????????????????????????????????????? | | ?????????????????????????????????????????????? | | ?????????????????????????????????????????????? | | ?????????????????????????????????????????????? | | ?????????????????????????????????????????????? | | ?????????????????????????????????????????????? | | ?????????????????????????????????????????????? | +----------------------------------------------------+ Best States ------------- Heat Dissipation 31 Energy Generation 14 Energy Capacity 250 Matter Stores 300 Matter Capacity 300 Sight Range 18 Terrain Scan Density 10 Evasion (%) 55 Targeting Accuracy 15 Recoil Reduction 4 Item Schematics ----------------- None Robot Schematics ------------------ None Fabricated ------------ Nothing Repaired ---------- Nothing Alien Tech Used ----------------- None Achievements -------------- None Challenges ------------ None Game ------ Seed JunkPointyUnit Manual? 0 Play Time 00:34:02 Cumulative 6.0 hours Start 2025.10.16 @ 22:37:29 End 2025.10.17 @ 00:27:00 Sessions 1 Manual Loads 0 Difficulty Rogue Special Mode None Game No. 12 Rogue 11 Adventurer 1 Explorer 0 Win Type - Total 0 Types 0/0/0/0/0/0/0/0/0/0 Lore% 5 Gallery% 10 Achievement% 12 Wizard Run 0 Options --------- Layout 1 ASCII 0 Keyboard 0 Movement Numpad Keybinds 0 Fullscreen 1 Font 24/Smallcaps Map View 50x35 Zoom Use 0% Tactical HUD 0 Map Filters NONE Filters NONE Steam 1 RUN: e530df6c-c80e-4f8d-aab8-1fe6f8ff84c1